Cogmind - Beta 12 @@@ ROGUE MODE // 2023.03.13 @ 16:43:08 Player: ZLD1 Result: Destroyed by G-34 Mercenary with Small Laser Performance ------------- Evolutions (1) 500 Regions Visited (2) 400 Robots Destroyed (21) 105 Value Destroyed (625) 625 Prototype IDs (0) 0 Alien Tech Used (0) 0 Bonus (0) 0 TOTAL SCORE: 1630 Bonus ------- None Cogmind --------- Core Integrity 0/400 Matter 233/300 Energy 265/265 System Corruption 3% Temperature Cool (6) Movement Flying (117) Ox1 Location -9/Materials Parts ------- > --- POWER (1) -------- Improved Ion Engine > --- PROPULSION (4) --- Flight Unit Flight Unit > --- UTILITY (2) ------ Signal Interpreter Light Armor Plating > --- WEAPON (2) ------- (None) > --- INVENTORY (5) ---- Heavy Hammer Peak State ------------ > --- POWER ------------ Improved Ion Engine > --- PROPULSION ------- Flight Unit Flight Unit Flight Unit Flight Unit > --- UTILITY ---------- Signal Interpreter Light Armor Plating > --- WEAPON ----------- Particle Gun Spread Laser > --- INVENTORY -------- (None) [Rating: 12] Favorites ----------- Power Improved Ion Engine Engine Improved Ion Engine Propulsion Flight Unit Wheel Wheel Hover Unit Improved Hover Unit Flight Unit Flight Unit Utility Signal Interpreter Processor Signal Interpreter Protection Light Armor Plating Weapon Shotgun Energy Gun Small Laser Energy Cannon Beam Cannon Ballistic Gun Shotgun Impact Weapon Heavy Hammer Build | -11 -10 -9 ------- Run | Jun Mat Mat Slots Evolved 2 | . . 2 Power . | . . . Propulsion 2 | . . 2 Utility . | . . . Weapon . | . . . Parts Attached 28 | 3 2 23 Power 5 | 1 . 4 Engine 5 | 1 . 4 Core . | . . . Reactor . | . . . Propulsion 9 | . . 9 Treads . | . . . Leg . | . . . Wheel 3 | . . 3 Hover 1 | . . 1 Flight 5 | . . 5 Utility 2 | . 1 1 Device . | . . . Storage . | . . . Processor 1 | . 1 . Hackware . | . . . Protection 1 | . . 1 Artifact . | . . . Weapon 12 | 2 1 9 Energy Gun 4 | 2 . 2 Energy Cannon 1 | . 1 . Ballistic Gun 2 | . . 2 Ballistic Cannon . | . . . Launcher . | . . . Special Weapon . | . . . Impact Weapon 5 | . . 5 Slashing Weapon . | . . . Piercing Weapon . | . . . Special Melee Weapon . | . . . Unidentified Prototypes . | . . . Parts Lost 7 | . . 7 Power 3 | . . 3 Propulsion 3 | . . 3 Utility . | . . . Weapon 1 | . . 1 Highest Loss Streak 2 | . . 2 To Critical Strikes . | . . . Average Slot Usage (%) 42 | . 33 43 Engine 10 | . 14 9 Wheel 4 | . . 5 Flight 4 | . . 5 Processor 9 | . 2 11 Protection 1 | . . 1 Energy Gun 2 | . 15 . Ballistic Gun 5 | . . 5 Impact Weapon 2 | . . 3 Naked Turns . | . . . Heaviest Build 16 | 6 6 16 Greatest Support 16 | 3 3 16 Greatest Overweight (x) 3 | 1 1 3 Average Overweight (x) . | . . . Largest Inventory Capacity 5 | 5 5 5 Average Capacity 5 | 5 5 5 Most Carried 5 | 3 1 5 Average Carried . | . . 1 Final Capacity 5 | 5 5 5 Final Carried 1 | . . 1 Class Distribution -------------------- 83% | Mutant 16% | Scavenger-Mutant Dominant Class ---------------- Mutant | -10/Materials Mutant | -9/Materials Resources | -11 -10 -9 ----------- Run | Jun Mat Mat Matter Collected 524 | 130 50 344 Remotely . | . . . Salvage Created 682 | . 90 592 Parts 45 | . 1 44 Haulers Intercepted . | . . . Recyclers Shooed 2 | . . 2 Parts Field Recycled . | . . . Retrieved Matter . | . . . Parts Self-Destructed . | . . . Prevented . | . . . Kills | -11 -10 -9 ------- Run | Jun Mat Mat Combat Hostiles Destroyed 21 | . 2 19 Melee 3 | . . 3 Guns 16 | . 2 14 Classes Destroyed 3 | . 1 2 Swarmer 8 | . . 8 Grunt 9 | . 2 7 Sentry 4 | . . 4 Best Kill Streak 4 | . 2 4 Combat Bots Only 4 | . 2 4 Max Kills in Single Turn 1 | . 1 1 Gunslinging . | . . . Exploded . | . . . Melee 1 | . . 1 Uniques/NPCs Destroyed . | . . . Combat | -11 -10 -9 -------- Run | Jun Mat Mat Damage Taken 1158 | . 131 1027 Core 430 | . 29 401 Absorbed by Shields . | . . . Core Remaining (%) 94 | 100 88 . Volleys Fired 60 | . 9 51 Largest 2 | . 2 2 Hottest 130 | . 90 130 Shots Fired 74 | . 18 56 Gun 74 | . 18 56 Cannon . | . . . Launcher . | . . . Special . | . . . Kinetic 46 | . . 46 Thermal 28 | . 18 10 Explosive . | . . . Electromagnetic . | . . . Robot Hit Streak 11 | . 11 11 Robot Miss Streak 7 | . 2 7 Penetration Max . | . . . Secondary Targets 1 | . . 1 Max Gunslinging Chain 1 | . . 1 Shots Hit Robots 57 | . 14 43 Core Hits 34 | . 5 29 Critical Kills 1 | . . 1 Critical Parts Destroyed 1 | . . 1 Critical Strikes 3 | . 1 2 Burn 1 | . 1 . Smash 2 | . . 2 Melee Attacks 15 | . . 15 Impact 15 | . . 15 Slashing . | . . . Piercing . | . . . Sneak Attacks . | . . . Combat Hostiles . | . . . Follow-up Attacks . | . . . Damage Inflicted 1024 | . 166 858 Guns 614 | . 166 448 Cannons . | . . . Explosions 33 | . . 33 Melee 376 | . . 376 Ramming 1 | . . 1 Kinetic 332 | . . 332 Thermal 282 | . 166 116 Explosive . | . . . Electromagnetic 33 | . . 33 Impact 376 | . . 376 Slashing . | . . . Piercing . | . . . Highest Corruption 3 | . . 3 Average Corruption 2 | . . 2 Corruption Purged . | . . . Corruption Blocked . | . . . Effects 2 | . . 2 Message Errors 1 | . . 1 Matter Fused 1 | . . 1 Overload Shots . | . . . Overflow Damage 72 | . . 72 Projectiles . | . . . Explosions . | . . . Melee 72 | . . 72 Knockbacks 2 | . . 2 Impact 2 | . . 2 Kinetic . | . . . Secondary . | . . . Self-Inflicted Damage 42 | . . 42 Shots 1 | . . 1 Rammed 1 | . . 1 Targets Rammed 1 | . . 1 Kicked . | . . . Crushed . | . . . Highest Temperature 456 | . 345 456 Average Temperature 193 | . 172 212 Received Heat Transfer 348 | . 75 273 Effects 5 | . 1 4 Shutdowns 1 | . . 1 Matter Decay 1 | . 1 . Short Circuit 2 | . . 2 Damage (minor) 1 | . . 1 Siege Activations . | . . . Robots Corrupted . | . . . Combat Hostiles . | . . . Parts Fried 1 | . . 1 Impact Corruptions 2 | . . 2 Robots Melted . | . . . Combat Hostiles . | . . . Parts Melted 2 | . 2 . Heat Transferred 726 | . 508 218 Parts Sabotaged . | . . . Parts Stolen . | . . . Parts Stripped . | . . . Power Chain Reactions . | . . . Missiles Intercepted . | . . . Alert | -11 -10 -9 ------- Run | Jun Mat Mat Peak Influence 408 | . 65 408 Initial 27 | . . 27 Average 152 | . 37 178 Maximum Alert Level 2 | . . 2 Low Security (%) 67 | 100 100 61 Level 1 23 | . . 28 Level 2 8 | . . 10 Level 3 . | . . . Level 4 . | . . . Level 5 . | . . . High Security . | . . . Max Security . | . . . Squads Dispatched 3 | . . 3 Investigation 1 | . . 1 Extermination . | . . . Reinforcement 2 | . . 2 Assault . | . . . Garrison . | . . . Intercept . | . . . Searches Triggered . | . . . Construction Impeded . | . . . Haulers Reinforced . | . . . Active Scanning Responses . | . . . Cargo Convoy Interrupts . | . . . Stealth | -11 -10 -9 --------- Run | Jun Mat Mat Distress Signals 3 | . . 3 Communications Jammed . | . . . Distress Signals . | . . . Times Spotted 32 | . 3 29 Peak Tracking Total 6 | . 2 6 Tactical Retreats 1 | . . 1 Traps | -11 -10 -9 ------- Run | Jun Mat Mat Traps Triggered 2 | . . 2 Indirectly . | . . . Trap Hack Attempts . | . . . Triggered . | . . . Disarmed . | . . . Reprogrammed . | . . . Reused . | . . . Traps Extracted . | . . . Installed . | . . . Triggered . | . . . Machines | -11 -10 -9 ---------- Run | Jun Mat Mat Machines Disabled 2 | . . 2 Max in Single Turn 2 | . . 2 Machines Repaired . | . . . Machines Sabotaged . | . . . Overloaded Fab Kills . | . . . Hacking | -11 -10 -9 --------- Run | Jun Mat Mat Machines Accessed . | . . . Terminals . | . . . Fabricators . | . . . Repair Stations . | . . . Recycling Units . | . . . Scanalyzers . | . . . Garrison Access . | . . . Total Hacks . | . . . Successful . | . . . Failed . | . . . Catastrophic . | . . . Database Lockouts . | . . . Manual . | . . . Terminals . | . . . Fabricators . | . . . Repair Stations . | . . . Recycling Units . | . . . Scanalyzers . | . . . Garrison Access . | . . . Terminal Hacks . | . . . Fabricator Hacks . | . . . Repair Station Hacks . | . . . Recycling Unit Hacks . | . . . Scanalyzer . | . . . Garrison Access Hacks . | . . . Unauthorized Hacks . | . . . Terminals . | . . . Fabricators . | . . . Repair Stations . | . . . Recycling Units . | . . . Scanalyzers . | . . . Garrison Access . | . . . Data Cores Recovered . | . . . Used . | . . . Hacking Detections . | . . . Full Trace Events . | . . . Feedback Events . | . . . Feedback Blocked . | . . . Robot Schematics Acquired . | . . . Robots Built . | . . . Authchips . | . . . Time . | . . . Total Robot Build Rating . | . . . Part Schematics Acquired . | . . . Parts Built . | . . . Authchips . | . . . Time . | . . . Total Part Build Rating . | . . . Parts Repaired . | . . . Time . | . . . Parts Recycled . | . . . Recycled Matter . | . . . Retrieved Matter . | . . . Retrieved Components . | . . . Parts Scanalyzed . | . . . Part Schematics Acquired . | . . . Parts Damaged . | . . . Bothacking | -11 -10 -9 ------------ Run | Jun Mat Mat Used RIF Installer . | . . . Robots Hacked . | . . . Non-combat . | . . . Combat . | . . . Robot Hacks Applied . | . . . Relay Couplers Released . | . . . Fabnet Peak Effective % . | . . . Robots Rewired . | . . . Allies Hacked . | . . . Hacks Repelled . | . . . Allies | -11 -10 -9 -------- Run | Jun Mat Mat Total Allies . | . . . Largest Group . | . . . Highest-Rated Group . | . . . Highest-Rated Ally . | . . . Total Orders . | . . . Ally Attacks . | . . . Total Damage . | . . . Kills . | . . . Allies Corrupted . | . . . Allies Melted . | . . . Intel | -11 -10 -9 ------- Run | Jun Mat Mat Robot Analysis Total . | . . . Derelict Logs Recovered . | . . . Drone Launches . | . . . Drone Recoveries . | . . . Exploration | -11 -10 -9 ------------- Run | Jun Mat Mat Turns Passed 857 | 30 118 709 Spaces Moved 661 | 32 114 515 Core 279 | 32 114 133 Treads . | . . . Legs . | . . . Wheels 262 | . . 262 Hover 17 | . . 17 Flight 103 | . . 103 Fastest Speed 31 | 50 50 31 Average Speed 86 | 78 75 89 Slowest Speed 200 | 100 100 200 Overloaded Moves . | . . . Propulsion Burnouts . | . . . Robots Hopped . | . . . Cave-ins Triggered . | . . . Exploration Rate (%) 30 | 3 36 51 Regions Visited 2 Branch Regions . Pre-discovered Areas . | . . . Known Exits Taken 1 | . 1 . Unknown Exits Taken 1 | 1 . . Scrap Searched . | . . . Spaces Dug . | . . . Terrain Destroyed . | . . . Melee . | . . . Projectile . | . . . AOE . | . . . Terrain Rammed . | . . . Walls Destroyed . | . . . Machines Disabled . | . . . Actions | -11 -10 -9 --------- Run | Jun Mat Mat Total 857 | 37 128 692 Wait 56 | . . 56 Move 659 | 31 113 515 Hop . | . . . Pick Up 24 | 3 2 19 Fast Attach 1 | . . 1 Attach 27 | 3 2 22 Detach 4 | . . 4 Swap . | . . . Drop 10 | . 2 8 Fire 60 | . 9 51 Melee 15 | . . 15 Ram 1 | . . 1 Kick . | . . . Crush . | . . . Escape Stasis . | . . . Rewire . | . . . Trap . | . . . Miscellaneous . | . . . Route ------- -11/Junkyard -10/Materials -9/Materials (discovered 2 exits: [*Mat] / *Min) History --------- Turn | Location | Event 3 | -11/Junkyard | Discovered new exit (range 16) 31 | -11/Junkyard | Entered Materials 137 | -10/Materials | Discovered new exit (range 12) 146 | -10/Materials | Identified exit to Materials 149 | -10/Materials | Entered another Materials area 149 | -9/Materials | Evolved 2 slots: Propulsion x2 308 | -9/Materials | Build established: Mutant 508 | -9/Materials | Discovered new exit (range 14) 520 | -9/Materials | Discovered new exit (range 16) 577 | -9/Materials | Identified exit to Mines 615 | -9/Materials | Core integrity fell below 50% 724 | -9/Materials | Core integrity fell below 20% 858 | -9/Materials | Destroyed by G-34 Mercenary with Small Laser Last Messages --------------- 00778_ R-06 Scavenger collects Lgt. Assault Rifle. 00779_ G-34 Mercenary destroyed. 00780_ Flight Unit broken. 00780_ Overheating: Short circuit. 00781_ Power failure, Imp. Ion Engine shutdown. 00782_ Neutrino Reactor explodes. 00782_ Scanalyzer disabled. 00782_ Dropped Broken Flight Unit. 00783_ Overheating: Spread Laser damaged (-4). 00783_ Dropped Spread Laser. 00784_ Particle Gun broken. 00784_ Overheating: Short circuit. 00793_ RBR VSHUYAPHEI MA:K2L0V:XS6WA 00799_ Acquired 33 matter. 00801_ U-05 Engineer lays Concrete. 00802_ Slammed into U-05 Engineer. 00802_ Destabilizing: System corrupted (+2). 00807_ Dropped Broken Particle Gun. 00809_ System corrupted: Matter fused (-7). 00858_ Acquired Hvy. Hammer. Map ----- +----------------------------------------------------+ | ??????????????????????????????????? | | ????????????????############??????? | | ????????????????# / [!=[%#??????? | | ????????????????# [ / ##??????? | | ????????????????# == !#???????? | | ????????????????# *=*=! #???????? | | ????????????????# %!% #???????? | | ????????????##### ==[ ####????? | | ????????????# # # #????? | | ????????????# T # [! # #????? | | ?############ ########+## #????? | | ?# ## #????# #????? | | ?# ## !#????# [ #????? | | ?# #? #????# ########### | | ?# #? ?????# # # | | ?# ###+####### + ! # | | ?# """ """ + """ # """ # | | ???""" """ # "T" # """"" ? | | ????"" """ # #### # """""?? | | ????######## #??# # """""?? | | ?? ? ????#%#??# # """ ?? | | ?? ????# #??# # ?? | | ?# T #####+#### = ##########? | | ?? # #+####+######?????? | | ?? #""" # g #?????? | | ??# ##""" # """ @ #?????? | | ??# ##""" # """ #?????? | | ??# ## # """ "" #?????? | | ??# ##""" # Y" #?????? | | ??# ##""" # "" #?????? | | ??# ##""" # | #?????? | | ?## ## #############?????? | | ?# ###+#######????????????????? | | ?# #????????????????? | | ?# #????????????????? | | ?# #????????????????? | | ?# *[* ####### +????????????????? | | ####/####????? #????????????????? | | #?????? #????????????????? | | #??????? #????????????????? | | #????????#????????????????? | | #?????????????????????????? | | #?????????????????????????? | | +############?????????????????????? | | ??????????????????? | | ??????????????????? | | ]! ??????????????????? | | ]! ???????????????????? | | ^! ???????????????????? | | ] #######????????????????????? | +----------------------------------------------------+ Best States ------------- Heat Dissipation 28 Energy Generation 12 Energy Capacity 265 Matter Stores 300 Matter Capacity 300 Sight Range 16 Terrain Scan Density 10 Armor Coverage 150 Evasion (%) 63 Item Schematics ----------------- None Robot Schematics ------------------ None Fabricated ------------ Nothing Alien Tech Used ----------------- None Achievements -------------- None Challenges ------------ None Game ------ Seed GuidanceColdRipper Manual? 0 Play Time 00:12:50 Cumulative 7.1 hours Start 2023.03.13 @ 16:23:26 End 2023.03.13 @ 16:43:08 Sessions 1 Manual Loads 0 Difficulty Rogue Special Mode None Game No. 18 Rogue 18 Adventurer 0 Explorer 0 Win Type - Total 0 Types 0/0/0/0/0/0/0/0/0 Lore% 13 Gallery% 16 Achievement% 13 Wizard Run 0 Options --------- ASCII 0 Keyboard 0 Movement Mouse Keybinds 0 Fullscreen 1 Font 24/Smallcaps Map View 64x52 Tactical HUD 1 Map Filters NONE Filters NONE Steam 1 RUN: 20f4ade5-dd1b-40ef-bf60-53da7ccacf4b